[Event "CZE-tht Extraliga 2018-19"]
[Site "Czech Republic"]
[Date "2019.02.09"]
[Round "7.7"]
[White "Kawulok, Marek"]
[Black "Zilka, Stepan"]
[Result "0-1"]
[ECO "E04"]
[WhiteElo "2198"]
[BlackElo "2533"]
[Annotator "ChessBase"]
[PlyCount "66"]
[EventDate "2018.11.03"]
[EventType "team-tourn"]
[EventCountry "CZE"]
[SourceTitle "playchess.com"]
[Source "ChessBase"]
[SourceQuality "1"]
[WhiteTeam "Cesky Tesin"]
[BlackTeam "Novoborsky"]
[TimeControl "40/5400+30:1800+30"]

1. d4 {[%emt 0:00:00]} Nf6 {[%emt 0:00:34]} 2. c4 {[%emt 0:00:00]} e6 {[%emt 0:00:04]} 3. g3 {[%emt 0:00:00]} d5 {[%emt 0:00:30]} 4. Nf3 {[%emt 0:00:02]} dxc4 {[%emt 0:00:15]} 5. Bg2 {[%emt 0:00:46]} a6 {[%emt 0:00:15]} 6. O-O {[%emt 0:08:59]} Nc6 {[%emt 0:00:08]} 7. e3 {[%emt 0:07:01]} Rb8 {[%emt 0:00:05]} 8. Nfd2 {[%emt 0:05:53]} e5 {[%emt 0:16:54]} 9. Bxc6+ {[%emt 0:06:00]} bxc6 {[%emt 0:00:02]} 10. dxe5 {[%emt 0:00:07]} Ng4 {[%emt 0:00:04]} 11. Nxc4 {[%emt 0:00:06]} Qxd1 {[%emt 0:00:36]} 12. Rxd1 {[%emt 0:00:02]} Be6 {[%emt 0:00:09]} 13. Nba3 {[%emt 0:09:13]} Bxa3 {[%emt 0:02:19]} 14. Nxa3 {[%emt 0:00:05]} Nxe5 {[%emt 0:00:07]} 15. f4 {[%emt 0:07:24]} Bg4 {[%emt 0:02:28]} 16. Rf1 {[%emt 0:00:26]} Nd3 {[%emt 0:00:07]} 17. Bd2 {[%emt 0:09:39]} Be2 {[%emt 0:10:30]} 18. Rfb1 {[%emt 0:01:00]} h5 {[%emt 0:01:16]} 19. h4 {[%emt 0:04:33]} O-O {[%emt 0:04:41]} 20. b3 {[%emt 0:02:32]} Rbd8 {[%emt 0:07:02]} 21. Nc4 {[%emt 0:02:57]} Rfe8 {[%emt 0:01:06]} 22. Ba5 {[%emt 0:08:22]} Re7 {[%emt 0:02:03]} 23. Kg2 {[%emt 0:03:38]} f6 {[%emt 0:02:45]} 24. Nb2 {[%emt 0:03:21]} Rd5 {[%emt 0:12:31]} 25. Nc4 {[%emt 0:03:47]} g5 {[%emt 0:04:01]} 26. hxg5 {[%emt 0:00:59]} fxg5 {[%emt 0:00:02]} 27. Bc3 {[%emt 0:00:09]} g4 {[%emt 0:02:10]} 28. Ne5 {[%emt 0:02:14]} Nxe5 {[%emt 0:00:16]} 29. Bxe5 {[%emt 0:00:05]} Bf3+ {[%emt 0:04:04]} 30. Kf1 {[%emt 0:00:06]} h4 {[%emt 0:02:29]} 31. gxh4 {[%emt 0:00:13]} Rexe5 {[%emt 0:04:37]} 32. fxe5 {[%emt 0:00:06]} Rd2 {[%emt 0:00:04]} 33. Kg1 {[%emt 0:04:46]} g3 {[%emt 0:01:08]} 0-1

[Event "CZE-tht Extraliga 2018-19"]
[Site "Czech Republic"]
[Date "2019.02.09"]
[Round "7.8"]
[White "Kriebel, Tadeas"]
[Black "Mitura, Vaclav"]
[Result "1-0"]
[ECO "B12"]
[WhiteElo "2513"]
[BlackElo "2147"]
[Annotator "ChessBase"]
[PlyCount "75"]
[EventDate "2018.11.03"]
[EventType "team-tourn"]
[EventCountry "CZE"]
[SourceTitle "playchess.com"]
[Source "ChessBase"]
[SourceQuality "1"]
[WhiteTeam "Novoborsky"]
[BlackTeam "Cesky Tesin"]
[TimeControl "40/5400+30:1800+30"]

1. e4 {[%emt 0:00:00]} c6 {[%emt 0:00:02]} 2. d4 {[%emt 0:00:00]} d5 {[%emt 0:00:09]} 3. e5 {[%emt 0:00:00]} Bf5 {[%emt 0:00:14]} 4. Nf3 {[%emt 0:00:00]} e6 {[%emt 0:00:13]} 5. Be2 {[%emt 0:00:00]} Nd7 {[%emt 0:00:36]} 6. O-O {[%emt 0:00:09]} Bg6 {[%emt 0:00:17]} 7. Nbd2 {[%emt 0:00:26]} Nh6 {[%emt 0:00:50]} 8. Nb3 {[%emt 0:00:06]} Nf5 {[%emt 0:01:30]} 9. Bd2 {[%emt 0:00:20]} Be7 {[%emt 0:02:04]} 10. a4 {[%emt 0:00:05]} O-O {[%emt 0:08:52]} 11. a5 {[%emt 0:00:53]} c5 {[%emt 0:05:04]} 12. c3 {[%emt 0:08:23]} Rc8 {[%emt 0:08:08]} 13. Nxc5 {[%emt 0:20:16]} Nxc5 {[%emt 0:04:25]} 14. dxc5 {[%emt 0:01:39]} Bxc5 {[%emt 0:00:35]} 15. b4 {[%emt 0:00:25]} Be7 {[%emt 0:00:07]} 16. a6 {[%emt 0:00:13]} b6 {[%emt 0:04:52]} 17. g4 {[%emt 0:00:18]} Nh4 {[%emt 0:05:54]} 18. Nd4 {[%emt 0:00:14]} Qc7 {[%emt 0:02:29]} 19. f4 {[%emt 0:00:25]} Be4 {[%emt 0:53:09]} 20. Qe1 {[%emt 0:04:27]} h6 {[%emt 0:00:00]} 21. Qg3 {[%emt 0:04:34]} Qd8 {[%emt 0:00:00]} 22. Rad1 {[%emt 0:16:43]} Kh8 {[%emt 0:00:00]} 23. h3 {[%emt 0:13:06]} Rg8 {[%emt 0:00:00]} 24. Bb5 {[%emt 0:01:06]} Ng6 {[%emt 0:02:30]} 25. Qe3 {[%emt 0:05:05]} Qc7 {[%emt 0:00:00]} 26. Rc1 {[%emt 0:01:19]} Nh4 {[%emt 0:00:00]} 27. Rf2 {[%emt 0:03:54]} g5 {[%emt 0:00:00]} 28. Rcf1 {[%emt 0:06:58]} gxf4 {[%emt 0:00:00]} 29. Qxf4 {[%emt 0:03:53]} Bg5 {[%emt 0:00:00]} 30. Qg3 {[%emt 0:00:27]} Rg7 {[%emt 0:00:00]} 31. Bxg5 {[%emt 0:01:45]} hxg5 {[%emt 0:00:00]} 32. Bc6 {[%emt 0:02:52]} Ng6 {[%emt 0:00:41]} 33. Bb7 {[%emt 0:00:08]} Qxc3 {[%emt 0:00:47]} 34. Qxc3 {[%emt 0:02:22]} Rxc3 {[%emt 0:00:02]} 35. Nb5 {[%emt 0:00:13]} Nf4 {[%emt 0:00:43]} 36. Nxc3 {[%emt 0:00:28]} Nxh3+ {[%emt 0:00:39]} 37. Kh2 {[%emt 0:00:05]} Rh7 {[%emt 0:01:19]} 38. Rxf7 {[%emt 0:00:52]} 1-0

[Event "CZE-tht Extraliga 2018-19"]
[Site "Czech Republic"]
[Date "2019.02.09"]
[Round "7.8"]
[White "Suran, Jan"]
[Black "Vyskocil, Neklan"]
[Result "1/2-1/2"]
[ECO "B33"]
[WhiteElo "2408"]
[BlackElo "2295"]
[Annotator "NA"]
[PlyCount "141"]
[EventDate "2018.11.03"]
[EventType "team-tourn"]
[EventCountry "CZE"]
[SourceTitle "playchess.com"]
[Source "ChessBase"]
[SourceQuality "1"]
[WhiteTeam "Lysa nad Labem"]
[BlackTeam "Duras"]
[TimeControl "40/5400+30:1800+30"]

1. e4 {[%emt 0:00:00]} c5 {[%emt 0:00:00]} 2. Nf3 {[%emt 0:00:00]} Nc6 {[%emt 0:00:17]} 3. d4 {[%emt 0:00:07]} cxd4 {[%emt 0:00:12]} 4. Nxd4 {[%emt 0:00:03]} Nf6 {[%emt 0:00:49]} 5. Nc3 {[%emt 0:00:09]} e5 {[%emt 0:00:29]} 6. Ndb5 {[%emt 0:00:38]} d6 {[%emt 0:00:25]} 7. Bg5 {[%emt 0:01:07]} a6 {[%emt 0:00:15]} 8. Na3 {[%emt 0:00:15]} b5 {[%emt 0:00:22]} 9. Nd5 {[%emt 0:01:34]} Be7 {[%emt 0:00:14]} 10. Bxf6 {[%emt 0:03:01]} Bxf6 {[%emt 0:00:10]} 11. c4 {[%emt 0:01:11]} b4 {[%emt 0:00:44]} 12. Nc2 {[%emt 0:00:04]} a5 {[%emt 0:00:18]} 13. Be2 {[%emt 0:05:12]} O-O {[%emt 0:01:16]} 14. O-O {[%emt 0:00:07]} Bg5 {[%emt 0:00:47]} 15. Qd3 {[%emt 0:04:35]} Rb8 {[%emt 0:05:30]} 16. Rad1 {[%emt 0:05:33]} a4 {[%emt 0:04:27]} 17. b3 {[%emt 0:03:13]} Qa5 {[%emt 0:07:14]} 18. Qg3 {[%emt 0:12:15]} Bd8 {[%emt 0:09:56]} 19. h3 {[%emt 0:33:04]} Be6 {[%emt 0:03:35]} 20. Bg4 {[%emt 0:01:54]} axb3 {[%emt 0:07:15]} 21. axb3 {[%emt 0:00:04]} Qa2 {[%emt 0:07:00]} 22. Qd3 {[%emt 0:01:17]} Bxd5 {[%emt 0:02:42]} 23. cxd5 {[%emt 0:02:12]} Ne7 {[%emt 0:20:22]} 24. Ne3 {[%emt 0:04:59]} Ra8 {[%emt 0:08:19]} 25. Nc4 {[%emt 0:02:50]} Bc7 {[%emt 0:01:05]} 26. f4 {[%emt 0:02:24]} exf4 {[%emt 0:01:37]} 27. e5 {[%emt 0:02:22]} Qa7+ {[%emt 0:00:41]} 28. Kh1 {[%emt 0:00:18]} Rad8 {[%emt 0:01:07]} 29. e6 {[%emt 0:00:37]} fxe6 {[%emt 0:01:43]} 30. Bxe6+ {[%emt 0:00:03]} Kh8 {[%emt 0:00:06]} 31. Rde1 {[%emt 0:09:33]} Bb6 {[%emt 0:03:38]} 32. Qd2 {[%emt 0:02:46]} Ng6 {[%emt 0:03:07]} 33. Qxb4 {[%emt 0:00:09]} Bc5 {[%emt 0:00:27]} 34. Qc3 {[%emt 0:00:29]} Rb8 {[%emt 0:07:44]} 35. Qc2 {[%emt 0:00:49]} Qb7 {[%emt 0:01:03]} 36. Rb1 {[%emt 0:00:42]} Qe7 {[%emt 0:00:49]} 37. Bf5 {[%emt 0:01:20]} Nh4 {[%emt 0:00:19]} 38. Rbe1 {[%emt 0:01:10]} Qg5 {[%emt 0:01:03]} 39. Be4 {[%emt 0:00:44]} Rbe8 {[%emt 0:00:42]} 40. Nd2 {[%emt 0:00:38]} Bb4 {[%emt 0:01:27]} 41. Rd1 {[%emt 0:11:47]} Qg3 {[%emt 0:09:52]} 42. Nf3 {[%emt 0:05:52]} Nxg2 {[%emt 0:14:07]} 43. Qxg2 {[%emt 0:00:08]} Qxg2+ {[%emt 0:00:33]} 44. Kxg2 {[%emt 0:00:01]} Rxe4 {[%emt 0:00:02]} 45. Ng5 {[%emt 0:04:17]} Re3 {[%emt 0:01:59]} 46. Rf3 {[%emt 0:03:09]} h6 {[%emt 0:01:25]} 47. Ne6 {[%emt 0:00:29]} Rc8 {[%emt 0:02:54]} 48. Nxf4 {[%emt 0:01:05]} Rc2+ {[%emt 0:00:28]} 49. Kg3 {[%emt 0:01:23]} Be1+ {[%emt 0:02:12]} 50. Kg4 {[%emt 0:00:15]} Re4 {[%emt 0:01:23]} 51. Rf1 {[%emt 0:04:58]} Bd2 {[%emt 0:00:36]} 52. Rf2 {[%emt 0:00:38]} g5 {[%emt 0:00:34]} 53. Rdxd2 {[%emt 0:00:44]} Rxd2 {[%emt 0:00:10]} 54. Rxd2 {[%emt 0:00:01]} Rxf4+ {[%emt 0:00:13]} 55. Kg3 {[%emt 0:00:11]} Rb4 {[%emt 0:00:19]} 56. Rd3 {[%emt 0:00:02]} Kg7 {[%emt 0:00:23]} 57. Re3 {[%emt 0:01:46]} h5 {[%emt 0:01:00]} 58. Re7+ {[%emt 0:00:34]} Kf6 {[%emt 0:00:59]} 59. Re6+ {[%emt 0:00:05]} Kf5 {[%emt 0:00:10]} 60. Rxd6 {[%emt 0:00:13]} Rxb3+ {[%emt 0:00:07]} 61. Kg2 {[%emt 0:00:27]} Rb2+ {[%emt 0:00:31]} 62. Kf3 {[%emt 0:01:00]} h4 {[%emt 0:01:00]} 63. Rd8 {[%emt 0:00:18]} Rb3+ {[%emt 0:00:35]} 64. Kg2 {[%emt 0:00:07]} Rb2+ {[%emt 0:00:04]} 65. Kf3 {[%emt 0:00:03]} Rh2 {[%emt 0:00:52]} 66. Rf8+ {[%emt 0:00:05]} Kg6 {[%emt 0:00:29]} 67. d6 {[%emt 0:00:38]} Rd2 {[%emt 0:00:39]} 68. Rd8 {[%emt 0:01:42]} Kf6 {[%emt 0:00:33]} 69. d7 {[%emt 0:01:15]} Ke7 {[%emt 0:00:17]} 70. Rg8 {[%emt 0:00:07]} Rxd7 {[%emt 0:00:27]} 71. Ke4 1/2-1/2

[Event "CZE-tht Extraliga 2018-19"]
[Site "Czech Republic"]
[Date "2019.02.09"]
[Round "7.8"]
[White "Smid, Miroslav"]
[Black "Rabatin, Jakub"]
[Result "1-0"]
[ECO "A15"]
[WhiteElo "2265"]
[BlackElo "2318"]
[Annotator "ChessBase"]
[PlyCount "115"]
[EventDate "2018.11.03"]
[EventType "team-tourn"]
[EventCountry "CZE"]
[SourceTitle "playchess.com"]
[Source "ChessBase"]
[SourceQuality "1"]
[WhiteTeam "Siesta"]
[BlackTeam "Beskydska"]
[TimeControl "40/5400+30:1800+30"]

1. c4 {[%emt 0:00:00]} Nf6 {[%emt 0:00:00]} 2. g3 {[%emt 0:00:00]} g6 {[%emt 0:00:00]} 3. Bg2 {[%emt 0:00:09]} Bg7 {[%emt 0:00:00]} 4. Nc3 {[%emt 0:00:17]} O-O {[%emt 0:00:04]} 5. e4 {[%emt 0:02:05]} d6 {[%emt 0:00:07]} 6. Nge2 {[%emt 0:00:09]} c5 {[%emt 0:01:23]} 7. O-O {[%emt 0:00:56]} Nc6 {[%emt 0:00:15]} 8. d3 {[%emt 0:00:06]} Ne8 {[%emt 0:02:57]} 9. Be3 {[%emt 0:08:18]} Nd4 {[%emt 0:14:33]} 10. Qd2 {[%emt 0:05:29]} Nc7 {[%emt 0:12:08]} 11. Bh6 {[%emt 0:04:39]} e5 {[%emt 0:16:17]} 12. Bxg7 {[%emt 0:03:40]} Kxg7 {[%emt 0:00:09]} 13. Nxd4 {[%emt 0:03:05]} cxd4 {[%emt 0:00:14]} 14. Ne2 {[%emt 0:04:07]} a5 {[%emt 0:02:00]} 15. f4 {[%emt 0:05:43]} f6 {[%emt 0:00:05]} 16. Rf2 {[%emt 0:05:11]} Bd7 {[%emt 0:06:35]} 17. f5 {[%emt 0:06:14]} g5 {[%emt 0:11:24]} 18. Bf3 {[%emt 0:03:31]} Na6 {[%emt 0:08:57]} 19. h4 {[%emt 0:01:52]} h6 {[%emt 0:02:21]} 20. Rh2 {[%emt 0:01:44]} a4 {[%emt 0:17:11]} 21. Kg2 {[%emt 0:04:16]} Qe7 {[%emt 0:00:37]} 22. Rah1 {[%emt 0:00:24]} Rh8 {[%emt 0:00:10]} 23. Bh5 {[%emt 0:05:46]} Nc5 {[%emt 0:00:31]} 24. Bg6 {[%emt 0:00:43]} Bc6 {[%emt 0:00:54]} 25. hxg5 {[%emt 0:01:54]} fxg5 {[%emt 0:00:06]} 26. Rf1 {[%emt 0:01:17]} Nd7 {[%emt 0:02:20]} 27. g4 {[%emt 0:04:29]} Nf6 {[%emt 0:00:21]} 28. Kf3 {[%emt 0:00:18]} Be8 {[%emt 0:01:46]} 29. Bxe8 {[%emt 0:01:18]} Nxe8 {[%emt 0:00:32]} 30. Ng3 {[%emt 0:00:45]} Nf6 {[%emt 0:00:26]} 31. Rfh1 {[%emt 0:01:54]} Ng8 {[%emt 0:00:31]} 32. Nh5+ {[%emt 0:02:59]} Kf8 {[%emt 0:00:21]} 33. Kg3 {[%emt 0:01:03]} Ke8 {[%emt 0:00:32]} 34. Qb4 {[%emt 0:00:57]} Qc7 {[%emt 0:00:41]} 35. f6 {[%emt 0:05:16]} Rh7 {[%emt 0:00:14]} 36. Ng7+ {[%emt 0:01:31]} Kf7 {[%emt 0:00:38]} 37. Rf1 {[%emt 0:04:18]} Ra6 {[%emt 0:00:32]} 38. Nh5 Kg6 39. Ng7 {[%emt 0:08:08]} Kf7 {[%emt 0:01:06]} 40. Qd2 {[%emt 0:01:57]} Qd7 {[%emt 0:00:22]} 41. Qg2 {[%emt 0:04:45]} d5 {[%emt 0:07:00]} 42. cxd5 {[%emt 0:04:17]} Rxf6 {[%emt 0:11:25]} 43. Ne6 {[%emt 0:03:27]} Ke8 {[%emt 0:01:11]} 44. Rxf6 {[%emt 0:05:56]} Nxf6 {[%emt 0:00:04]} 45. Qf1 {[%emt 0:00:23]} Rf7 {[%emt 0:00:57]} 46. Rf2 {[%emt 0:00:08]} Ke7 {[%emt 0:02:43]} 47. Rf5 {[%emt 0:01:29]} Qd6 {[%emt 0:07:02]} 48. Kh3 {[%emt 0:01:17]} h5 {[%emt 0:01:42]} 49. gxh5 {[%emt 0:00:30]} g4+ {[%emt 0:00:16]} 50. Kh4 {[%emt 0:03:52]} Kd7 {[%emt 0:02:48]} 51. Qc1 {[%emt 0:06:07]} Qb6 {[%emt 0:00:28]} 52. Ng5 {[%emt 0:00:50]} Rf8 {[%emt 0:00:30]} 53. h6 {[%emt 0:01:35]} g3 {[%emt 0:00:30]} 54. h7 {[%emt 0:00:50]} g2 55. Kh3 a3 {[%emt 0:01:03]} 56. bxa3 {[%emt 0:00:50]} Rh8 {[%emt 0:00:30]} 57. Kxg2 {[%emt 0:00:28]} Rc8 {[%emt 0:00:20]} 58. Qxc8+ {[%emt 0:00:10]} 1-0

[Event "CZE-tht Extraliga 2018-19"]
[Site "Czech Republic"]
[Date "2019.02.09"]
[Round "7.8"]
[White "Slampa, Jan"]
[Black "Vymazal, Bronislav"]
[Result "0-1"]
[ECO "A80"]
[WhiteElo "2258"]
[BlackElo "2366"]
[Annotator "NA"]
[PlyCount "128"]
[EventDate "2018.11.03"]
[EventType "team-tourn"]
[EventCountry "CZE"]
[SourceTitle "playchess.com"]
[Source "ChessBase"]
[SourceQuality "1"]
[WhiteTeam "Siesta B"]
[BlackTeam "Brno"]
[TimeControl "40/5400+30:1800+30"]

1. d4 {[%emt 0:00:00]} f5 {[%emt 0:00:00]} 2. Nf3 {[%emt 0:00:44]} Nf6 {[%emt 0:00:00]} 3. g3 {[%emt 0:00:31]} g6 {[%emt 0:00:00]} 4. Bg2 {[%emt 0:00:06]} Bg7 {[%emt 0:00:00]} 5. O-O {[%emt 0:00:25]} O-O {[%emt 0:00:00]} 6. Nc3 {[%emt 0:11:05]} d5 {[%emt 0:09:16]} 7. e3 {[%emt 0:13:49]} e6 {[%emt 0:17:16]} 8. Ne2 {[%emt 0:02:36]} Nbd7 {[%emt 0:05:45]} 9. b3 {[%emt 0:04:45]} b6 {[%emt 0:08:30]} 10. Ba3 {[%emt 0:05:23]} Re8 {[%emt 0:00:16]} 11. Rc1 {[%emt 0:00:17]} Bb7 {[%emt 0:01:44]} 12. Nf4 {[%emt 0:02:14]} Ne4 {[%emt 0:04:10]} 13. c4 {[%emt 0:04:53]} c6 {[%emt 0:10:16]} 14. Qe2 {[%emt 0:06:33]} a5 {[%emt 0:09:15]} 15. Rc2 {[%emt 0:04:35]} a4 {[%emt 0:00:18]} 16. b4 {[%emt 0:12:03]} Ba6 {[%emt 0:09:11]} 17. b5 {[%emt 0:00:17]} Bb7 {[%emt 0:01:19]} 18. Rfc1 {[%emt 0:02:11]} c5 {[%emt 0:00:55]} 19. dxc5 {[%emt 0:09:11]} bxc5 {[%emt 0:01:10]} 20. Nd2 {[%emt 0:01:03]} Rc8 {[%emt 0:10:33]} 21. cxd5 {[%emt 0:02:31]} exd5 {[%emt 0:00:04]} 22. Nxe4 {[%emt 0:00:41]} dxe4 {[%emt 0:00:39]} 23. Qc4+ {[%emt 0:06:07]} Kh8 {[%emt 0:00:05]} 24. Qxa4 {[%emt 0:00:32]} Qb6 {[%emt 0:04:21]} 25. h4 {[%emt 0:03:10]} Rc7 {[%emt 0:02:06]} 26. Qb3 {[%emt 0:01:15]} Be5 {[%emt 0:03:05]} 27. Bf1 {[%emt 0:01:07]} Kg7 {[%emt 0:00:32]} 28. Bc4 {[%emt 0:00:43]} Bxf4 {[%emt 0:01:32]} 29. exf4 {[%emt 0:02:32]} Nf6 {[%emt 0:00:19]} 30. Bb2 {[%emt 0:00:14]} Kh6 {[%emt 0:00:07]} 31. Be5 {[%emt 0:02:02]} Rce7 {[%emt 0:00:06]} 32. Rd2 {[%emt 0:00:24]} Ng4 {[%emt 0:00:13]} 33. Rd6 {[%emt 0:00:28]} Qa7 {[%emt 0:00:14]} 34. Rcd1 {[%emt 0:01:32]} e3 {[%emt 0:00:19]} 35. fxe3 {[%emt 0:00:22]} Nxe5 {[%emt 0:00:27]} 36. fxe5 {[%emt 0:00:30]} Rxe5 {[%emt 0:00:04]} 37. R1d3 {[%emt 0:00:40]} Re4 {[%emt 0:02:17]} 38. Bd5 {[%emt 0:00:47]} Bxd5 {[%emt 0:00:18]} 39. Qxd5 {[%emt 0:00:28]} c4 {[%emt 0:00:53]} 40. b6 {[%emt 0:00:41]} Qxa2 {[%emt 0:00:20]} 41. Rd2 {[%emt 0:03:43]} Qb1+ {[%emt 0:07:34]} 42. Rd1 {[%emt 0:02:35]} Qb3 {[%emt 0:03:39]} 43. Kh2 {[%emt 0:05:24]} Qxe3 {[%emt 0:11:40]} 44. Qxf5 {[%emt 0:06:32]} Rxh4+ {[%emt 0:05:47]} 45. gxh4 {[%emt 0:00:15]} Qe2+ {[%emt 0:00:05]} 46. Kg1 {[%emt 0:00:26]} Qxd1+ {[%emt 0:00:06]} 47. Rxd1 {[%emt 0:00:26]} gxf5 {[%emt 0:00:04]} 48. Rc1 {[%emt 0:01:01]} Rb8 {[%emt 0:00:29]} 49. Rxc4 {[%emt 0:00:19]} Rxb6 {[%emt 0:00:04]} 50. Kf2 {[%emt 0:00:28]} Rb3 {[%emt 0:00:17]} 51. Kg2 {[%emt 0:00:21]} Kg6 {[%emt 0:00:45]} 52. Ra4 {[%emt 0:00:12]} Re3 {[%emt 0:01:01]} 53. Ra6+ {[%emt 0:03:11]} Kh5 {[%emt 0:00:28]} 54. Rf6 {[%emt 0:00:35]} Kg4 {[%emt 0:00:28]} 55. Rh6 {[%emt 0:01:03]} Re2+ {[%emt 0:00:49]} 56. Kf1 {[%emt 0:00:28]} Re7 {[%emt 0:00:26]} 57. Kf2 {[%emt 0:00:08]} Ra7 {[%emt 0:01:03]} 58. Kg2 {[%emt 0:03:18]} f4 {[%emt 0:00:21]} 59. Kf2 {[%emt 0:00:13]} f3 {[%emt 0:01:06]} 60. Rf6 {[%emt 0:04:40]} Ra2+ {[%emt 0:00:17]} 61. Ke1 {[%emt 0:00:28]} Kg3 {[%emt 0:00:15]} 62. Rf7 {[%emt 0:00:18]} f2+ {[%emt 0:00:19]} 63. Kf1 {[%emt 0:00:24]} Ra1+ {[%emt 0:00:10]} 64. Ke2 {[%emt 0:00:04]} Re1+ 0-1

[Event "CZE-tht Extraliga 2018-19"]
[Site "Czech Republic"]
[Date "2019.02.09"]
[Round "7.8"]
[White "Kanok, Jaroslav"]
[Black "Rosko, Lubos"]
[Result "0-1"]
[ECO "A05"]
[WhiteElo "2146"]
[BlackElo "2276"]
[Annotator "NA"]
[PlyCount "82"]
[EventDate "2018.11.03"]
[EventType "team-tourn"]
[EventCountry "CZE"]
[SourceTitle "playchess.com"]
[Source "ChessBase"]
[SourceQuality "1"]
[WhiteTeam "Ostrava"]
[BlackTeam "Pardubice"]
[TimeControl "40/5400+30:1800+30"]

1. Nf3 {[%emt 0:00:00]} Nf6 {[%emt 0:00:20]} 2. g3 {[%emt 0:00:09]} d5 {[%emt 0:00:52]} 3. Bg2 {[%emt 0:01:11]} g6 {[%emt 0:01:10]} 4. d3 {[%emt 0:05:13]} Bg7 {[%emt 0:00:12]} 5. O-O {[%emt 0:00:33]} O-O {[%emt 0:00:31]} 6. Nbd2 {[%emt 0:00:40]} c5 {[%emt 0:03:04]} 7. c3 {[%emt 0:02:53]} Nc6 {[%emt 0:00:09]} 8. e4 {[%emt 0:00:14]} e5 {[%emt 0:01:20]} 9. Qc2 {[%emt 0:03:30]} Re8 {[%emt 0:00:42]} 10. Rb1 {[%emt 0:04:10]} a5 {[%emt 0:06:13]} 11. Re1 {[%emt 0:03:36]} h6 {[%emt 0:01:13]} 12. h3 {[%emt 0:08:51]} a4 {[%emt 0:09:18]} 13. Nf1 {[%emt 0:10:07]} Be6 {[%emt 0:04:41]} 14. b4 {[%emt 0:05:10]} axb3 {[%emt 0:10:24]} 15. axb3 {[%emt 0:00:18]} Qd7 {[%emt 0:09:57]} 16. g4 {[%emt 0:08:47]} h5 {[%emt 0:07:44]} 17. gxh5 {[%emt 0:09:13]} Nxh5 {[%emt 0:09:37]} 18. Ng5 {[%emt 0:00:59]} d4 {[%emt 0:00:44]} 19. Nxe6 {[%emt 0:04:33]} Qxe6 {[%emt 0:05:20]} 20. cxd4 {[%emt 0:01:43]} Nxd4 {[%emt 0:02:25]} 21. Qd1 {[%emt 0:07:18]} Nf4 {[%emt 0:01:12]} 22. Bxf4 {[%emt 0:07:02]} exf4 {[%emt 0:00:07]} 23. Nh2 {[%emt 0:01:30]} Ra2 {[%emt 0:02:05]} 24. Nf3 {[%emt 0:04:14]} Nb5 {[%emt 0:01:32]} 25. Qc1 {[%emt 0:01:14]} Na3 {[%emt 0:05:55]} 26. Qxc5 {[%emt 0:02:31]} Nxb1 {[%emt 0:00:22]} 27. Rxb1 {[%emt 0:00:07]} Rc8 {[%emt 0:00:27]} 28. Qb5 {[%emt 0:01:31]} Qc6 {[%emt 0:01:43]} 29. Qc4 {[%emt 0:03:06]} b5 {[%emt 0:01:25]} 30. Qxc6 {[%emt 0:02:27]} Rxc6 {[%emt 0:00:05]} 31. e5 {[%emt 0:00:27]} Rcc2 {[%emt 0:01:15]} 32. d4 {[%emt 0:00:36]} Rxf2 {[%emt 0:01:11]} 33. Bh1 {[%emt 0:00:07]} Bf8 {[%emt 0:02:12]} 34. Rd1 {[%emt 0:01:20]} Rfb2 {[%emt 0:00:58]} 35. e6 {[%emt 0:00:52]} fxe6 {[%emt 0:00:26]} 36. Ng5 {[%emt 0:00:08]} Bh6 {[%emt 0:09:05]} 37. Nf3 {[%emt 0:00:29]} Rxb3 {[%emt 0:00:34]} 38. d5 {[%emt 0:00:19]} Bf8 {[%emt 0:00:50]} 39. Nd4 {[%emt 0:00:31]} Bc5 {[%emt 0:00:16]} 40. dxe6 {[%emt 0:01:03]} Bxd4+ {[%emt 0:00:20]} 41. Kf1 {[%emt 0:30:00]} f3 0-1

[Event "CZE-tht Extraliga 2018-19"]
[Site "Czech Republic"]
[Date "2019.02.10"]
[Round "8.1"]
[White "Nguyen, Thai Dai Van"]
[Black "Molenda, Marcin"]
[Result "1/2-1/2"]
[ECO "B48"]
[WhiteElo "2542"]
[BlackElo "2393"]
[Annotator "RC"]
[PlyCount "36"]
[EventDate "2018.11.03"]
[EventType "team-tourn"]
[EventCountry "CZE"]
[SourceTitle "playchess.com"]
[Source "ChessBase"]
[SourceQuality "1"]
[WhiteTeam "Siesta"]
[BlackTeam "Cesky Tesin"]
[TimeControl "40/5400+30:1800+30"]

1. e4 {[%emt 0:00:00]} c5 {[%emt 0:00:00]} 2. Nf3 {[%emt 0:00:00]} e6 {[%emt 0:00:00]} 3. d4 {[%emt 0:00:00]} cxd4 {[%emt 0:00:00]} 4. Nxd4 {[%emt 0:00:00]} Nc6 {[%emt 0:00:00]} 5. Nc3 {[%emt 0:00:00]} Qc7 {[%emt 0:00:04]} 6. Be3 {[%emt 0:00:03]} a6 {[%emt 0:00:04]} 7. Qf3 {[%emt 0:00:05]} b5 {[%emt 0:10:35]} 8. Nxc6 {[%emt 0:22:08]} Qxc6 {[%emt 0:01:15]} 9. Bd3 {[%emt 0:04:12]} Bb7 {[%emt 0:03:34]} 10. a3 {[%emt 0:05:13]} Nf6 {[%emt 0:19:12]} 11. O-O {[%emt 0:12:30]} Bd6 {[%emt 0:06:34]} 12. Bd4 {[%emt 0:12:04]} Bxh2+ {[%emt 0:04:56]} 13. Kxh2 {[%emt 0:14:49]} Qd6+ {[%emt 0:00:26]} 14. e5 {[%emt 0:05:40]} Qxd4 {[%emt 0:00:09]} 15. Qxb7 {[%emt 0:00:04]} Qh4+ {[%emt 0:00:06]} 16. Kg1 {[%emt 0:00:02]} Ng4 {[%emt 0:00:05]} 17. Rfe1 {[%emt 0:00:54]} Qxf2+ {[%emt 0:00:43]} 18. Kh1 {[%emt 0:00:05]} Qh4+ {[%emt 0:00:54]} 1/2-1/2